fUSD/lending_fUSD_20241221
["ID","MTS","AMOUNT","RATE_DAILY","PERIOD"]
[346249935,1734817850042,-500.0,0.00019845,2]
[346249936,1734817850052,-889.9,0.00019845,2]
[346249937,1734817850061,-500.0,0.00019845,2]
[346249938,1734817850071,-500.0,0.00019845,2]
[346249939,1734817850080,-500.0,0.00019845,2]
[346249940,1734817850089,-2727.42,0.00019845,2]
[346249941,1734817850099,-500.0,0.00019845,2]
[346249942,1734817850108,-500.0,0.00019852,2]
[346249943,1734817850117,-151.0,0.00019852,2]
[346249944,1734817850127,-151.0,0.00019853,2]
[346249945,1734817850136,-151.0,0.00019853,2]
[346249946,1734817850145,-151.0,0.00019854,2]
[346249947,1734817850154,-151.0,0.00019854,2]
[346249948,1734817850164,-500.0,0.00019854,2]
[346249949,1734817850173,-500.0,0.00019854,2]
[346249950,1734817850182,-3193.1,0.00019854,2]
[346249951,1734817850192,-500.0,0.00019854,2]
[346249952,1734817850201,-500.0,0.00019854,2]
[346249953,1734817850210,-500.0,0.00019854,2]
[346249954,1734817850219,-523.69,0.00019854,2]
[346249955,1734817850231,-500.0,0.00019854,2]
[346249956,1734817850240,-1604.18,0.00019854,2]
[346249957,1734817850250,-500.0,0.00019854,2]
[346249958,1734817850259,-500.0,0.00019854,2]
[346249959,1734817850268,-500.0,0.00019854,2]
[346249960,1734817850278,-500.0,0.00019854,2]
[346249961,1734817850287,-500.0,0.00019854,2]
[346249962,1734817850296,-646.33,0.00019854,2]
[346249963,1734817850305,-151.0,0.00019854,2]
[346249964,1734817850314,-151.0,0.00019855,2]
[346249965,1734817850323,-500.0,0.00019856,2]
[346249966,1734817850332,-338500.01821134,0.00019856,2]
[346249967,1734817850822,-151.0,0.00019742,2]
[346249968,1734817850831,-151.0,0.00019744,2]
[346249969,1734817850841,-213.193782,0.00019804,2]
[346249970,1734817850851,-455.10324288,0.00019845,2]
[346249971,1734817850860,-3115.69793058,0.00019856,2]
[346249972,1734817850871,-1522.9792,0.00019856,2]
[346249973,1734817850883,-13310.51483807,0.00019856,2]
[346249974,1734818210717,165.94,0.00010137,2]
[346249980,1734818920854,150.91,0.00018379,30]
[346250000,1734819031831,-272.21,0.00016457,2]
[346250001,1734819032052,-336.5862505,0.00016457,2]
[346250002,1734819032116,-209.6637495,0.00016457,2]
[346250003,1734819032126,-500.0,0.00017664,2]
[346250004,1734819032137,-500.0,0.00017664,2]
[346250005,1734819032147,-645.35516495,0.00017967,2]
[346250021,1734819037689,-1014.05658256,0.00017967,2]
[346250023,1734819037818,-344.14759755,0.00017967,2]
[346250024,1734819038092,-331.2499994,0.00017967,2]
[346250025,1734819038108,-1408.26065554,0.00017967,2]
[346250026,1734819038118,-150.0,0.00018,2]
[346250027,1734819038127,-1096.55659915,0.0001816,2]
[346250028,1734819038140,-616.03340085,0.0001816,2]
[346250029,1734819038149,-250.0,0.00018184,2]
[346250030,1734819038159,-250.0,0.00018196,2]
[346250031,1734819038168,-372.28,0.00018219,2]
[346250032,1734819038177,-162.19,0.00018226,2]
[346250033,1734819038187,-1730.39731741,0.00018256,2]
[346250034,1734819038210,-544.32727247,0.00018256,2]
[346250040,1734819039876,-21625.27541012,0.00018256,2]
[346250041,1734819039888,-200.0,0.00018256,2]
[346250042,1734819039901,-664.93724661,0.00018314,2]
[346250043,1734819039917,-156.77,0.00018328,2]
[346250044,1734819039927,-21169.32,0.00018356,2]
[346250045,1734819039936,-255.0,0.00018414,2]
[346250046,1734819039947,-156.77,0.0001842,2]
[346250047,1734819039958,-167.34,0.00018447,2]
[346250048,1734819039969,-454.47,0.00018545,2]
[346250049,1734819039981,-370.66,0.00018584,2]
[346250050,1734819039993,-250.0,0.00018662,2]
[346250051,1734819040004,-155.74,0.00018697,2]
[346250052,1734819040015,-1000.0,0.00018709,2]
[346250053,1734819040025,-1000.17,0.00018709,2]
[346250054,1734819040034,-818.46,0.00018721,2]
[346250055,1734819040043,-56.38327104,0.0001876,2]
[346250056,1734819040194,-443.61672896,0.0001876,2]
[346250057,1734819040203,-518.402,0.0001887,2]
[346250058,1734819040214,-2000.0,0.00018945,2]
[346250059,1734819040224,-100756.98384049,0.00019,2]
[346250060,1734819040233,-300.0,0.00019014,2]
[346250061,1734819040242,-436.91,0.00019145,2]
[346250062,1734819040251,-152.68,0.00019178,2]
[346250063,1734819040260,-167.64,0.00019412,2]
[346250064,1734819040269,-1000.0,0.00019438,2]
[346250065,1734819040278,-976.98,0.00019439,2]
[346250066,1734819040287,-1952.64,0.00019439,2]
[346250067,1734819040297,-976.98,0.00019439,2]
[346250068,1734819040306,-976.98,0.00019439,2]
[346250069,1734819040314,-976.98,0.00019439,2]
[346250070,1734819040323,-436.21,0.00019439,2]
[346250071,1734819040332,-436.21,0.00019439,2]
[346250072,1734819040341,-162.19,0.00019441,2]
[346250073,1734819040350,-349.85499,0.00019486,7]
[346250074,1734819040360,-4865.9111,0.00019492,2]
[346250075,1734819040371,-163.68710815,0.00019534,2]
[346250076,1734819040380,-161.33650201,0.00019534,2]
[346250077,1734819040389,-552.14268405,0.00019641,2]
[346250078,1734819040398,-171.67385756,0.00019641,2]
[346250079,1734819040407,-3855.5314,0.00019641,2]
[346250080,1734819040416,-49083.7496,0.00019641,2]
[346250081,1734819040425,-298.572,0.00019642,2]
[346250083,1734819040435,-500.0,0.00019642,2]
[346250084,1734819040444,-161.33650201,0.00019644,2]
[346250085,1734819040453,-359.69016016,0.00019646,2]
[346250086,1734819040462,-552.14268401,0.0001967,2]
[346250087,1734819040471,-552.14268401,0.00019699,2]
[346250088,1734819040480,-369.23655934,0.000197,2]
[346250089,1734819040489,-552.14268401,0.00019727,2]
[346250090,1734819040498,-500.0,0.0001974,2]
[346250091,1734819040507,-500.0,0.0001974,2]
[346250092,1734819040516,-500.0,0.0001974,2]
[346250093,1734819040525,-500.0,0.0001974,2]
[346250094,1734819040535,-500.0,0.0001974,2]
[346250095,1734819040544,-5412.91,0.0001974,2]
[346250096,1734819040553,-152.502649,0.0001974,2]
[346250097,1734819040562,-1472.824133,0.0001974,2]
[346250098,1734819040571,-716.14,0.0001974,2]
[346250099,1734819040580,-2732.31,0.0001974,2]
[346250100,1734819040590,-9334.83,0.0001974,2]
[346250101,1734819040599,-500.0,0.0001974,2]
[346250102,1734819040608,-716.714647,0.0001974,2]
[346250103,1734819040620,-986.14,0.0001974,2]
[346250104,1734819040630,-500.0,0.0001974,2]
[346250105,1734819040640,-615.81,0.0001974,2]
[346250106,1734819040650,-500.0,0.0001974,2]
[346250107,1734819040660,-1247.05,0.0001974,2]
[346250108,1734819040669,-2070.91,0.0001974,2]
[346250109,1734819040678,-1773.78,0.0001974,2]
[346250110,1734819040687,-625.03,0.0001974,2]
[346250111,1734819040696,-500.0,0.0001974,2]
[346250112,1734819040706,-1158.81,0.0001974,2]
[346250113,1734819040715,-6536.39,0.0001974,2]
[346250114,1734819040726,-500.0,0.0001974,2]
[346250115,1734819040735,-7068.84,0.0001974,2]
[346250116,1734819040744,-1913.76,0.0001974,2]
[346250117,1734819040754,-1199.0,0.0001974,2]
[346250118,1734819040763,-500.0,0.0001974,2]
[346250119,1734819040773,-832.08,0.0001974,2]
[346250120,1734819040783,-1230.41,0.0001974,2]
[346250121,1734819040793,-2549.12,0.0001974,2]
[346250122,1734819040802,-2015.84,0.0001974,2]
[346250123,1734819040811,-4471.5,0.0001974,2]
[346250124,1734819040820,-14843.74,0.0001974,2]
[346250125,1734819040829,-4797.57,0.0001974,2]
[346250126,1734819040839,-1326.53,0.0001974,2]
[346250127,1734819040848,-530.35,0.0001974,2]
[346250128,1734819040857,-643.26,0.0001974,2]
[346250129,1734819040871,-977.71,0.0001974,2]
[346250130,1734819040881,-9335.11,0.0001974,2]
[346250131,1734819040891,-500.0,0.0001974,2]
[346250132,1734819040902,-1345.05,0.0001974,2]
[346250133,1734819040914,-500.0,0.0001974,2]
[346250134,1734819040923,-500.0,0.0001974,2]
[346250135,1734819040933,-500.0,0.0001974,2]
[346250136,1734819040943,-16496.7,0.0001974,2]
[346250137,1734819040955,-500.0,0.0001974,2]
[346250138,1734819040964,-500.0,0.0001974,2]
[346250139,1734819040974,-4138.73,0.0001974,2]
[346250140,1734819040984,-500.0,0.0001974,2]
[346250141,1734819040993,-1142.02,0.0001974,2]
[346250142,1734819041002,-4089.25,0.0001974,2]
[346250143,1734819041011,-1097.14,0.0001974,2]
[346250144,1734819041020,-500.0,0.0001974,2]
[346250145,1734819041030,-528.0,0.0001974,2]
[346250146,1734819041040,-730.81,0.0001974,2]
[346250147,1734819041049,-500.0,0.0001974,2]
[346250148,1734819041059,-500.0,0.00019741,2]
[346250149,1734819041068,-500.0,0.00019741,2]
[346250150,1734819041077,-500.0,0.00019741,2]
[346250151,1734819041086,-509.94450405,0.00019741,2]
[346250152,1734819041095,-500.0,0.00019741,2]
[346250153,1734819041105,-500.0,0.00019741,2]
[346250154,1734819041114,-500.0,0.00019741,2]
[346250155,1734819041124,-500.0,0.00019741,2]
[346250156,1734819041133,-500.0,0.00019741,2]
[346250157,1734819041142,-500.0,0.00019741,2]
[346250158,1734819041151,-299.22384332,0.00019741,2]
[346250159,1734819041160,-500.0,0.00019741,2]
[346250160,1734819041169,-500.0,0.00019741,2]
[346250161,1734819041178,-588.62,0.00019741,2]
[346250162,1734819041187,-500.0,0.00019741,2]
[346250163,1734819041196,-500.0,0.00019741,2]
[346250164,1734819041205,-500.0,0.00019741,2]
[346250165,1734819041215,-638.33810587,0.00019741,2]
[346250166,1734819041223,-500.0,0.00019741,2]
[346250167,1734819041232,-500.0,0.00019741,2]
[346250168,1734819041241,-500.0,0.00019741,2]
[346250169,1734819041250,-500.0,0.00019741,2]
[346250170,1734819041259,-500.0,0.00019741,2]
[346250171,1734819041269,-500.0,0.00019741,2]
[346250172,1734819041278,-500.0,0.00019741,2]
[346250173,1734819041287,-500.0,0.00019741,2]
[346250174,1734819041296,-500.0,0.00019741,2]
[346250175,1734819041306,-500.0,0.00019741,2]
[346250176,1734819041315,-500.0,0.00019741,2]
[346250177,1734819041324,-500.0,0.00019741,2]
[346250178,1734819041334,-500.0,0.00019741,2]
[346250179,1734819041343,-500.0,0.00019741,2]
[346250180,1734819041352,-500.0,0.00019741,2]
[346250181,1734819041362,-500.0,0.00019741,2]
[346250182,1734819041371,-500.0,0.00019741,2]
[346250183,1734819041380,-500.0,0.00019741,2]
[346250184,1734819041389,-500.0,0.00019741,2]
[346250185,1734819041400,-500.0,0.00019741,2]
[346250186,1734819041410,-500.0,0.00019741,2]
[346250187,1734819041422,-500.0,0.00019741,2]
[346250188,1734819041431,-500.0,0.00019741,2]
[346250189,1734819041442,-500.0,0.00019741,2]
[346250190,1734819041451,-500.0,0.00019741,2]
[346250191,1734819041462,-500.0,0.00019741,2]
[346250192,1734819041471,-393.85,0.00019741,2]
[346250193,1734819041480,-500.0,0.00019741,2]
[346250194,1734819041489,-359.2,0.00019741,2]
[346250195,1734819041498,-609.75,0.00019741,2]
[346250196,1734819041507,-500.0,0.00019741,2]
[346250197,1734819041516,-500.0,0.00019741,2]
[346250198,1734819041525,-500.0,0.00019741,2]
[346250199,1734819041535,-500.0,0.00019741,2]
[346250200,1734819041545,-561.04,0.00019741,2]
[346250201,1734819041555,-500.0,0.00019741,2]
[346250202,1734819041566,-500.0,0.00019741,2]
[346250203,1734819041577,-500.0,0.00019741,2]
[346250204,1734819041588,-500.0,0.00019741,2]
[346250205,1734819041598,-500.0,0.00019741,2]
[346250206,1734819041608,-2230.72,0.00019741,2]
[346250207,1734819041619,-500.0,0.00019741,2]
[346250208,1734819041629,-500.0,0.00019741,2]
[346250209,1734819041642,-500.0,0.00019741,2]
[346250210,1734819041652,-500.0,0.00019741,2]
[346250211,1734819041662,-500.0,0.00019741,2]
[346250212,1734819041671,-500.0,0.00019741,2]
[346250213,1734819041680,-500.0,0.00019741,2]
[346250214,1734819041688,-500.0,0.00019741,2]
[346250215,1734819041697,-500.0,0.00019741,2]
[346250216,1734819041706,-500.0,0.00019741,2]
[346250217,1734819041715,-500.0,0.00019741,2]
[346250218,1734819041724,-500.0,0.00019741,2]
[346250219,1734819041733,-500.0,0.00019741,2]
[346250220,1734819041742,-500.0,0.00019741,2]
[346250221,1734819041751,-500.0,0.00019741,2]
[346250222,1734819041761,-500.0,0.00019741,2]
[346250223,1734819041770,-500.0,0.00019741,2]
[346250224,1734819041780,-500.0,0.00019741,2]
[346250225,1734819041789,-500.0,0.00019741,2]
[346250226,1734819041798,-500.0,0.00019741,2]
[346250227,1734819041807,-500.0,0.00019741,2]
[346250228,1734819041816,-500.0,0.00019741,2]
[346250229,1734819041826,-500.0,0.00019741,2]
[346250230,1734819041835,-268.37999463,0.00019741,2]
[346250231,1734819041844,-500.0,0.00019741,2]
[346250232,1734819041853,-500.0,0.00019741,2]
[346250233,1734819041863,-500.0,0.00019741,2]
[346250234,1734819041873,-500.0,0.00019741,2]
[346250235,1734819041882,-500.0,0.00019741,2]
[346250236,1734819041892,-500.0,0.00019741,2]
[346250237,1734819041902,-500.0,0.00019741,2]
[346250238,1734819041913,-500.0,0.00019741,2]
[346250239,1734819041923,-500.0,0.00019741,2]
[346250240,1734819041933,-500.0,0.00019741,2]
[346250241,1734819041943,-500.0,0.00019741,2]
[346250242,1734819041954,-500.0,0.00019741,2]
[346250243,1734819041963,-500.0,0.00019741,2]
[346250244,1734819041974,-500.0,0.00019741,2]
[346250245,1734819041983,-500.0,0.00019741,2]
[346250246,1734819041992,-500.0,0.00019741,2]
[346250247,1734819042002,-500.0,0.00019741,2]
[346250248,1734819042011,-500.0,0.00019741,2]
[346250249,1734819042020,-500.0,0.00019741,2]
[346250250,1734819042029,-500.0,0.00019741,2]
[346250251,1734819042039,-500.0,0.00019741,2]
[346250252,1734819042049,-200.0,0.00019741,2]
[346250253,1734819042058,-500.0,0.00019741,2]
[346250254,1734819042067,-500.0,0.00019741,2]
[346250255,1734819042076,-500.0,0.00019741,2]
[346250256,1734819042086,-500.0,0.00019741,2]
[346250257,1734819042095,-500.0,0.00019741,2]
[346250258,1734819042105,-500.0,0.00019741,2]
[346250259,1734819042116,-500.0,0.00019741,2]
[346250260,1734819042125,-500.0,0.00019741,2]
[346250261,1734819042134,-500.0,0.00019741,2]
[346250262,1734819042143,-500.0,0.00019741,2]
[346250263,1734819042152,-500.0,0.00019741,2]
[346250264,1734819042162,-500.0,0.00019741,2]
[346250265,1734819042171,-500.0,0.00019741,2]
[346250266,1734819042179,-500.0,0.00019741,2]
[346250267,1734819042188,-500.0,0.00019741,2]
[346250268,1734819042198,-500.0,0.00019741,2]
[346250269,1734819042207,-500.0,0.00019741,2]
[346250270,1734819042216,-500.0,0.00019741,2]
[346250271,1734819042225,-1667.15,0.00019741,2]
[346250272,1734819042235,-500.0,0.00019741,2]
[346250273,1734819042243,-500.0,0.00019741,2]
[346250274,1734819042253,-500.0,0.00019741,2]
[346250275,1734819042262,-606.78,0.00019741,2]
[346250276,1734819042270,-2595.97,0.00019741,2]
[346250277,1734819042279,-500.0,0.00019741,2]
[346250278,1734819042288,-500.0,0.00019741,2]
[346250279,1734819042298,-500.0,0.00019741,2]
[346250280,1734819042307,-500.0,0.00019741,2]
[346250281,1734819042316,-500.0,0.00019741,2]
[346250282,1734819042325,-500.0,0.00019741,2]
[346250283,1734819042334,-500.0,0.00019741,2]
[346250284,1734819042343,-500.0,0.00019741,2]
[346250285,1734819042352,-500.0,0.00019741,2]
[346250286,1734819042361,-500.0,0.00019741,2]
[346250287,1734819042373,-500.0,0.00019741,2]
[346250288,1734819042382,-500.0,0.00019741,2]
[346250289,1734819042391,-500.0,0.00019741,2]
[346250290,1734819042400,-500.0,0.00019741,2]
[346250291,1734819042409,-500.0,0.00019741,2]
[346250292,1734819042418,-500.0,0.00019741,2]
[346250293,1734819042427,-500.0,0.00019741,2]
[346250294,1734819042436,-500.0,0.00019741,2]
[346250295,1734819042445,-500.0,0.00019741,2]
[346250296,1734819042455,-500.0,0.00019741,2]
[346250297,1734819042464,-500.0,0.00019741,2]
[346250298,1734819042481,-500.0,0.00019741,2]
[346250299,1734819042490,-500.0,0.00019741,2]
[346250301,1734819042499,-500.0,0.00019741,2]
[346250302,1734819042508,-500.0,0.00019741,2]
[346250303,1734819042518,-500.0,0.00019741,2]
[346250304,1734819042527,-500.0,0.00019741,2]
[346250305,1734819042536,-500.0,0.00019741,2]
[346250306,1734819042545,-622.97,0.00019741,2]
[346250308,1734819042554,-500.0,0.00019741,2]
[346250309,1734819042563,-500.0,0.00019741,2]
[346250310,1734819042572,-500.0,0.00019741,2]
[346250311,1734819042582,-562.71,0.00019741,2]
[346250312,1734819042591,-500.0,0.00019741,2]
[346250313,1734819042599,-500.0,0.00019741,2]
[346250314,1734819042608,-500.0,0.00019741,2]
[346250315,1734819042619,-634.47,0.00019741,2]
[346250316,1734819042628,-500.0,0.00019741,2]
[346250317,1734819042637,-500.0,0.00019741,2]
[346250318,1734819042645,-506.3408899,0.00019741,2]
[346250319,1734819042654,-500.0,0.00019741,2]
[346250320,1734819042663,-615.38,0.00019741,2]
[346250321,1734819042671,-500.0,0.00019741,2]
[346250322,1734819042680,-1389.04,0.00019741,2]
[346250323,1734819042689,-500.0,0.00019741,2]
[346250324,1734819042698,-503.57482118,0.00019741,2]
[346250325,1734819042707,-500.0,0.00019741,2]
[346250326,1734819042716,-509.05,0.00019741,2]
[346250327,1734819042725,-500.0,0.00019741,2]
[346250328,1734819042734,-500.0,0.00019741,2]
[346250329,1734819042743,-500.0,0.00019741,2]
[346250330,1734819042751,-500.0,0.00019741,2]
[346250331,1734819042760,-500.0,0.00019741,2]
[346250332,1734819042769,-500.0,0.00019741,2]
[346250333,1734819042778,-500.0,0.00019741,2]
[346250334,1734819042788,-578.09,0.00019741,2]
[346250335,1734819042798,-500.0,0.00019741,2]
[346250336,1734819042807,-500.0,0.00019741,2]
[346250337,1734819042817,-500.0,0.00019741,2]
[346250338,1734819042825,-500.0,0.00019741,2]
[346250339,1734819042834,-500.0,0.00019741,2]
[346250340,1734819042843,-500.0,0.00019741,2]
[346250341,1734819042852,-500.0,0.00019741,2]
[346250342,1734819042861,-500.0,0.00019741,2]
[346250343,1734819042873,-500.0,0.00019741,2]
[346250344,1734819042882,-500.0,0.00019741,2]
[346250345,1734819042891,-500.0,0.00019741,2]
[346250346,1734819042900,-500.0,0.00019741,2]
[346250347,1734819042913,-500.0,0.00019741,2]
[346250348,1734819042922,-500.0,0.00019741,2]
[346250349,1734819042931,-500.0,0.00019741,2]
[346250350,1734819042940,-500.0,0.00019741,2]
[346250351,1734819042951,-500.0,0.00019741,2]
[346250352,1734819042960,-510.63045206,0.00019741,2]
[346250353,1734819042969,-500.0,0.00019741,2]
[346250354,1734819042980,-500.0,0.00019741,2]
[346250355,1734819042989,-500.0,0.00019741,2]
[346250356,1734819042999,-500.0,0.00019741,2]
[346250357,1734819043008,-500.0,0.00019741,2]
[346250358,1734819043017,-500.0,0.00019741,2]
[346250359,1734819043027,-500.0,0.00019741,2]
[346250360,1734819043036,-500.0,0.00019741,2]
[346250361,1734819043046,-500.0,0.00019741,2]
[346250362,1734819043055,-500.0,0.00019741,2]
[346250363,1734819043065,-2226.33,0.00019741,2]
[346250364,1734819043074,-549.04,0.00019741,2]
[346250365,1734819043083,-500.0,0.00019741,2]
[346250366,1734819043092,-500.0,0.00019741,2]
[346250367,1734819043102,-500.0,0.00019741,2]
[346250368,1734819043111,-500.0,0.00019741,2]
[346250369,1734819043122,-355.95394453,0.00019741,2]
[346250370,1734819043131,-500.0,0.00019741,2]
[346250371,1734819043140,-500.0,0.00019741,2]
[346250372,1734819043149,-500.0,0.00019741,2]
[346250373,1734819043158,-2574.05,0.00019741,2]
[346250374,1734819043167,-173.81350935,0.00019741,2]
[346250375,1734819043176,-500.0,0.00019741,2]
[346250376,1734819043186,-500.0,0.00019741,2]
[346250377,1734819043195,-500.0,0.00019741,2]
[346250378,1734819043204,-500.0,0.00019741,2]
[346250379,1734819043213,-649.59,0.00019741,2]
[346250380,1734819043223,-500.0,0.00019741,2]
[346250381,1734819043232,-500.0,0.00019741,2]
[346250382,1734819043241,-500.0,0.00019741,2]
[346250383,1734819043250,-500.0,0.00019741,2]
[346250384,1734819043259,-393.23,0.00019741,2]
[346250385,1734819043269,-500.0,0.00019741,2]
[346250386,1734819043278,-500.0,0.00019741,2]
[346250387,1734819043288,-500.0,0.00019741,2]
[346250388,1734819043297,-500.0,0.00019741,2]
[346250389,1734819043306,-494.01738365,0.00019741,2]
[346250390,1734819043315,-500.0,0.00019741,2]
[346250391,1734819043324,-500.0,0.00019741,2]
[346250392,1734819043334,-500.0,0.00019741,2]
[346250394,1734819043343,-500.0,0.00019741,2]
[346250396,1734819043510,-645.51158826,0.00019741,2]
[346250398,1734819043520,-500.0,0.00019741,2]
[346250400,1734819043530,-500.0,0.00019741,2]
[346250401,1734819043539,-2695.74,0.00019741,2]
[346250402,1734819043548,-500.0,0.00019741,2]
[346250403,1734819043562,-500.0,0.00019741,2]
[346250404,1734819043571,-500.0,0.00019741,2]
[346250405,1734819043580,-500.0,0.00019741,2]
[346250406,1734819043589,-500.0,0.00019741,2]
[346250407,1734819043598,-593.85,0.00019741,2]
[346250408,1734819043607,-500.0,0.00019741,2]
[346250409,1734819043617,-500.0,0.00019741,2]
[346250410,1734819043626,-500.0,0.00019741,2]
[346250411,1734819043635,-787.15,0.00019741,2]
[346250412,1734819043644,-500.0,0.00019741,2]
[346250413,1734819043653,-500.0,0.00019741,2]
[346250414,1734819043662,-617.79,0.00019741,2]
[346250415,1734819043670,-500.0,0.00019741,2]
[346250416,1734819043679,-500.0,0.00019741,2]
[346250417,1734819043690,-1089.85,0.00019741,2]
[346250418,1734819043699,-1386.0,0.00019741,2]
[346250419,1734819043709,-500.0,0.00019741,2]
[346250420,1734819043720,-500.0,0.00019741,2]
[346250421,1734819043730,-500.0,0.00019741,2]
[346250422,1734819043741,-500.0,0.00019741,2]
[346250423,1734819043752,-500.0,0.00019741,2]
[346250424,1734819043763,-989.34,0.00019741,2]
[346250425,1734819043773,-169.37511073,0.00019741,2]
[346250426,1734819043782,-500.0,0.00019741,2]
[346250427,1734819043794,-500.0,0.00019741,2]
[346250428,1734819043805,-1243.37,0.00019741,2]
[346250429,1734819043816,-500.0,0.00019741,2]
[346250430,1734819043827,-500.0,0.00019741,2]
[346250431,1734819043837,-500.0,0.00019741,2]
[346250432,1734819043847,-500.0,0.00019741,2]
[346250433,1734819043858,-500.0,0.00019741,2]
[346250434,1734819043868,-956.46,0.00019741,2]
[346250435,1734819043878,-308.09637006,0.00019741,2]
[346250436,1734819043888,-500.0,0.00019741,2]
[346250437,1734819043898,-1660.24,0.00019741,2]
[346250438,1734819043913,-500.0,0.00019741,2]
[346250439,1734819043924,-500.0,0.00019741,2]
[346250440,1734819043933,-500.0,0.00019741,2]
[346250441,1734819043943,-500.0,0.00019741,2]
[346250442,1734819043954,-500.0,0.00019741,2]
[346250443,1734819043963,-500.0,0.00019741,2]
[346250444,1734819043975,-4162.75,0.00019741,2]
[346250445,1734819043988,-500.0,0.00019741,2]
[346250446,1734819043999,-500.0,0.00019741,2]
[346250447,1734819044009,-500.0,0.00019741,2]
[346250448,1734819044019,-500.0,0.00019741,2]
[346250449,1734819044029,-907.8,0.00019741,2]
[346250450,1734819044039,-500.0,0.00019741,2]
[346250451,1734819044049,-500.0,0.00019741,2]
[346250452,1734819044058,-500.0,0.00019741,2]
[346250453,1734819044069,-500.0,0.00019741,2]
[346250454,1734819044078,-569.14,0.00019741,2]
[346250455,1734819044087,-500.0,0.00019741,2]
[346250456,1734819044098,-500.0,0.00019741,2]
[346250457,1734819044108,-1054.35,0.00019741,2]
[346250458,1734819044118,-500.0,0.00019741,2]
[346250459,1734819044127,-725.57,0.00019741,2]
[346250460,1734819044137,-500.0,0.00019741,2]
[346250461,1734819044146,-500.0,0.00019741,2]
[346250462,1734819044156,-500.0,0.00019741,2]
[346250463,1734819044166,-500.0,0.00019741,2]
[346250464,1734819044175,-10349.78,0.00019741,2]
[346250465,1734819044185,-645.48119232,0.00019741,2]
[346250466,1734819044195,-500.0,0.00019741,2]
[346250467,1734819044204,-500.0,0.00019741,2]
[346250468,1734819044213,-500.0,0.00019741,2]
[346250469,1734819044222,-500.0,0.00019741,2]
[346250470,1734819044232,-500.0,0.00019741,2]
[346250471,1734819044241,-500.0,0.00019741,2]
[346250472,1734819044251,-500.0,0.00019741,2]
[346250473,1734819044260,-3965.11,0.00019741,2]
[346250474,1734819044270,-500.0,0.00019741,2]
[346250475,1734819044279,-494.56,0.00019741,2]
[346250476,1734819044288,-500.0,0.00019741,2]
[346250477,1734819044298,-500.0,0.00019741,2]
[346250478,1734819044307,-500.0,0.00019741,2]
[346250479,1734819044316,-500.0,0.00019741,2]
[346250480,1734819044325,-500.0,0.00019741,2]
[346250481,1734819044334,-500.0,0.00019741,2]
[346250482,1734819044344,-500.0,0.00019741,2]
[346250483,1734819044353,-5902.93,0.00019741,2]
[346250484,1734819044364,-362.88688033,0.00019741,2]
[346250485,1734819044373,-506.04143414,0.00019741,2]
[346250486,1734819044383,-500.0,0.00019741,2]